fUSD/lending_fUSD_20250119
["ID","MTS","AMOUNT","RATE_DAILY","PERIOD"]
[349550407,1737292247141,-500.0,0.00019452,2]
[349550408,1737292247150,-500.0,0.00019452,2]
[349550409,1737292247159,-500.0,0.00019452,2]
[349550410,1737292247169,-500.0,0.00019452,2]
[349550411,1737292247178,-578.81340966,0.00019452,2]
[349550412,1737292247187,-500.0,0.00019452,2]
[349550413,1737292247196,-500.0,0.00019452,2]
[349550414,1737292247206,-500.0,0.00019452,2]
[349550415,1737292247215,-500.0,0.00019452,2]
[349550416,1737292247224,-500.0,0.00019452,2]
[349550417,1737292247234,-500.0,0.00019452,2]
[349550418,1737292247245,-346.57491651,0.00019452,2]
[349550419,1737292247254,-314.05862693,0.00019452,2]
[349550420,1737292247264,-500.0,0.00019452,2]
[349550421,1737292247274,-500.0,0.00019452,2]
[349550422,1737292247283,-705.18,0.00019452,2]
[349550423,1737292247294,-500.0,0.00019452,2]
[349550424,1737292247303,-500.0,0.00019452,2]
[349550425,1737292247314,-500.0,0.00019452,2]
[349550426,1737292247323,-500.0,0.00019452,2]
[349550427,1737292247332,-500.0,0.00019452,2]
[349550428,1737292247342,-500.0,0.00019452,2]
[349550429,1737292247352,-500.0,0.00019452,2]
[349550430,1737292247361,-605.22,0.00019452,2]
[349550431,1737292247371,-512.82377305,0.00019452,2]
[349550432,1737292247380,-382.30795998,0.00019452,2]
[349550433,1737292247390,-500.0,0.00019452,2]
[349550434,1737292247399,-500.0,0.00019452,2]
[349550435,1737292247469,-900.64,0.00019452,2]
[349550436,1737292247478,-540.6,0.00019452,2]
[349550437,1737292247488,-631.32,0.00019452,2]
[349550438,1737292247498,-714.49,0.00019452,2]
[349550439,1737292247507,-500.0,0.00019452,2]
[349550440,1737292247516,-500.0,0.00019452,2]
[349550441,1737292247526,-500.0,0.00019452,2]
[349550442,1737292247535,-500.0,0.00019452,2]
[349550443,1737292247545,-500.0,0.00019452,2]
[349550444,1737292247554,-500.0,0.00019452,2]
[349550445,1737292247565,-500.0,0.00019452,2]
[349550446,1737292247575,-500.0,0.00019452,2]
[349550447,1737292247584,-500.0,0.00019452,2]
[349550448,1737292247593,-500.0,0.00019452,2]
[349550449,1737292247602,-500.0,0.00019452,2]
[349550450,1737292247612,-500.0,0.00019452,2]
[349550451,1737292247622,-500.0,0.00019452,2]
[349550452,1737292247631,-500.0,0.00019452,2]
[349550453,1737292247641,-500.0,0.00019452,2]
[349550454,1737292247650,-503.31,0.00019452,2]
[349550455,1737292247659,-500.0,0.00019452,2]
[349550456,1737292247668,-500.0,0.00019452,2]
[349550457,1737292247678,-500.0,0.00019452,2]
[349550458,1737292247688,-500.0,0.00019452,2]
[349550459,1737292247697,-428.1816931,0.00019452,2]
[349550460,1737292247707,-500.0,0.00019452,2]
[349550461,1737292247719,-989.64,0.00019452,2]
[349550462,1737292247729,-928.09,0.00019452,2]
[349550463,1737292247738,-500.0,0.00019452,2]
[349550464,1737292247747,-500.0,0.00019452,2]
[349550465,1737292247758,-500.0,0.00019452,2]
[349550466,1737292247767,-565.7,0.00019452,2]
[349550467,1737292247777,-500.76999174,0.00019452,2]
[349550468,1737292247787,-500.0,0.00019452,2]
[349550469,1737292247797,-608.22,0.00019452,2]
[349550470,1737292247808,-500.0,0.00019452,2]
[349550471,1737292247821,-500.0,0.00019452,2]
[349550472,1737292247831,-500.0,0.00019452,2]
[349550473,1737292247841,-500.0,0.00019452,2]
[349550474,1737292247851,-500.0,0.00019452,2]
[349550475,1737292247860,-500.0,0.00019452,2]
[349550476,1737292247870,-500.0,0.00019452,2]
[349550477,1737292247880,-500.0,0.00019452,2]
[349550478,1737292247889,-501.76,0.00019452,2]
[349550479,1737292247899,-500.0,0.00019452,2]
[349550480,1737292247909,-500.0,0.00019452,2]
[349550481,1737292247919,-505.83122925,0.00019452,2]
[349550482,1737292247928,-500.0,0.00019452,2]
[349550483,1737292247938,-463.25278668,0.00019452,2]
[349550484,1737292247947,-500.0,0.00019452,2]
[349550485,1737292247957,-500.0,0.00019452,2]
[349550486,1737292247966,-500.0,0.00019452,2]
[349550487,1737292247976,-404.55642958,0.00019452,2]
[349550488,1737292247986,-500.0,0.00019452,2]
[349550489,1737292247995,-500.0,0.00019452,2]
[349550490,1737292248005,-500.0,0.00019452,2]
[349550491,1737292248015,-370.14018003,0.00019452,2]
[349550492,1737292248025,-500.0,0.00019452,2]
[349550493,1737292248035,-500.0,0.00019452,2]
[349550494,1737292248044,-500.0,0.00019452,2]
[349550495,1737292248054,-500.0,0.00019452,2]
[349550496,1737292248066,-500.0,0.00019452,2]
[349550497,1737292248076,-500.0,0.00019452,2]
[349550498,1737292248086,-559.09,0.00019452,2]
[349550499,1737292248096,-689.91,0.00019452,2]
[349550500,1737292248105,-500.0,0.00019452,2]
[349550501,1737292248116,-500.0,0.00019452,2]
[349550502,1737292248125,-500.0,0.00019452,2]
[349550503,1737292248135,-500.0,0.00019452,2]
[349550504,1737292248144,-548.8,0.00019452,2]
[349550505,1737292248154,-715.56,0.00019452,2]
[349550506,1737292248163,-500.0,0.00019452,2]
[349550507,1737292248173,-804.68,0.00019452,2]
[349550508,1737292248183,-289.71433413,0.00019452,2]
[349550509,1737292248192,-500.0,0.00019452,2]
[349550510,1737292248203,-682.83,0.00019452,2]
[349550511,1737292248213,-500.0,0.00019452,2]
[349550512,1737292248223,-500.0,0.00019452,2]
[349550513,1737292248233,-500.0,0.00019452,2]
[349550514,1737292248243,-500.0,0.00019452,2]
[349550515,1737292248253,-1504.76,0.00019452,2]
[349550516,1737292248263,-1070.98,0.00019452,2]
[349550517,1737292248273,-1894.47,0.00019452,2]
[349550518,1737292248283,-500.0,0.00019452,2]
[349550519,1737292248292,-500.0,0.00019452,2]
[349550520,1737292248301,-540.8,0.00019452,2]
[349550521,1737292248311,-527.44479454,0.00019452,2]
[349550522,1737292248323,-657.78,0.00019452,2]
[349550523,1737292248333,-1651.79,0.00019452,2]
[349550524,1737292248343,-4965.38,0.00019452,2]
[349550525,1737292248353,-572.04,0.00019452,2]
[349550526,1737292248362,-500.0,0.00019452,2]
[349550527,1737292248372,-500.0,0.00019452,2]
[349550528,1737292248381,-500.0,0.00019452,2]
[349550529,1737292248391,-873.98,0.00019452,2]
[349550530,1737292248401,-500.0,0.00019452,2]
[349550531,1737292248411,-500.0,0.00019452,2]
[349550532,1737292248421,-500.0,0.00019452,2]
[349550533,1737292248430,-500.0,0.00019452,2]
[349550534,1737292248439,-3347.66,0.00019452,2]
[349550535,1737292248449,-500.0,0.00019452,2]
[349550536,1737292248458,-500.0,0.00019452,2]
[349550537,1737292248467,-872.81,0.00019452,2]
[349550538,1737292248477,-684.55,0.00019452,2]
[349550539,1737292248486,-1325.84,0.00019452,2]
[349550540,1737292248496,-5040.77,0.00019452,2]
[349550541,1737292248506,-500.0,0.00019452,2]
[349550542,1737292248515,-500.0,0.00019452,2]
[349550543,1737292248525,-536.4,0.00019452,2]
[349550544,1737292248535,-1617.26,0.00019452,2]
[349550545,1737292248544,-500.0,0.00019452,2]
[349550546,1737292248554,-500.0,0.00019452,2]
[349550547,1737292248566,-792.78,0.00019452,2]
[349550548,1737292248576,-904.94,0.00019452,2]
[349550549,1737292248586,-500.0,0.00019452,2]
[349550550,1737292248595,-500.0,0.00019452,2]
[349550551,1737292248604,-500.0,0.00019452,2]
[349550552,1737292248614,-1822.43,0.00019452,2]
[349550553,1737292248623,-500.0,0.00019452,2]
[349550554,1737292248633,-500.0,0.00019452,2]
[349550555,1737292248642,-500.0,0.00019452,2]
[349550556,1737292248651,-236.9128688,0.00019452,2]
[349550557,1737292248661,-500.0,0.00019452,2]
[349550558,1737292248670,-699.95,0.00019452,2]
[349550559,1737292248680,-500.0,0.00019452,2]
[349550560,1737292248689,-500.0,0.00019452,2]
[349550561,1737292248699,-3210.43,0.00019452,2]
[349550562,1737292248709,-500.0,0.00019452,2]
[349550563,1737292248718,-1462.05,0.00019452,2]
[349550564,1737292248732,-500.0,0.00019452,2]
[349550565,1737292248742,-540.89,0.00019452,2]
[349550566,1737292248752,-500.0,0.00019452,2]
[349550567,1737292248762,-500.0,0.00019452,2]
[349550568,1737292248772,-503.76210988,0.00019452,2]
[349550569,1737292248781,-502.93,0.00019452,2]
[349550570,1737292248790,-644.72,0.00019452,2]
[349550571,1737292248801,-1590.53,0.00019452,2]
[349550572,1737292248812,-520.83,0.00019452,2]
[349550573,1737292248827,-500.0,0.00019452,2]
[349550574,1737292248837,-500.0,0.00019452,2]
[349550575,1737292248846,-500.0,0.00019452,2]
[349550576,1737292248856,-500.0,0.00019452,2]
[349550577,1737292248866,-500.0,0.00019452,2]
[349550578,1737292248875,-500.0,0.00019452,2]
[349550579,1737292248886,-500.0,0.00019452,2]
[349550580,1737292248896,-695.52,0.00019452,2]
[349550581,1737292248905,-500.0,0.00019452,2]
[349550582,1737292248915,-500.0,0.00019452,2]
[349550583,1737292248924,-951.41,0.00019452,2]
[349550584,1737292248934,-500.0,0.00019452,2]
[349550585,1737292248943,-735.48,0.00019452,2]
[349550586,1737292248953,-500.0,0.00019452,2]
[349550587,1737292248963,-500.0,0.00019452,2]
[349550588,1737292248973,-500.0,0.00019452,2]
[349550589,1737292248983,-500.0,0.00019452,2]
[349550590,1737292248993,-500.0,0.00019452,2]
[349550591,1737292249002,-581.00332079,0.00019452,2]
[349550592,1737292249012,-702.45,0.00019452,2]
[349550593,1737292249021,-500.37674687,0.00019452,2]
[349550594,1737292249031,-500.0,0.00019452,2]
[349550595,1737292249041,-500.0,0.00019452,2]
[349550596,1737292249051,-500.0,0.00019452,2]
[349550597,1737292249061,-2463.65,0.00019452,2]
[349550598,1737292249086,-500.0,0.00019452,2]
[349550599,1737292249097,-500.0,0.00019452,2]
[349550600,1737292249107,-1434.63,0.00019452,2]
[349550601,1737292249116,-500.0,0.00019452,2]
[349550602,1737292249127,-500.0,0.00019452,2]
[349550603,1737292249137,-500.0,0.00019452,2]
[349550604,1737292249147,-500.0,0.00019452,2]
[349550605,1737292249157,-500.0,0.00019452,2]
[349550606,1737292249167,-626.69701753,0.00019452,2]
[349550607,1737292249176,-500.0,0.00019452,2]
[349550608,1737292249186,-882.85,0.00019452,2]
[349550609,1737292249196,-500.0,0.00019452,2]
[349550610,1737292249205,-500.0,0.00019452,2]
[349550611,1737292249215,-1830.16,0.00019452,2]
[349550612,1737292249224,-500.0,0.00019452,2]
[349550613,1737292249234,-795.55,0.00019452,2]
[349550614,1737292249243,-500.0,0.00019452,2]
[349550615,1737292249254,-501.15187847,0.00019452,2]
[349550616,1737292249263,-2062.48,0.00019452,2]
[349550617,1737292249274,-500.0,0.00019452,2]
[349550618,1737292249283,-517.3,0.00019452,2]
[349550619,1737292249293,-3504.96,0.00019452,2]
[349550620,1737292249302,-500.0,0.00019452,2]
[349550621,1737292249311,-500.0,0.00019452,2]
[349550622,1737292249325,-500.0,0.00019452,2]
[349550623,1737292249336,-782.55,0.00019452,2]
[349550624,1737292249346,-4164.88,0.00019452,2]
[349550625,1737292249355,-207.00613403,0.00019452,2]
[349550626,1737292249366,-1287.98,0.00019452,2]
[349550627,1737292249376,-500.0,0.00019452,2]
[349550628,1737292249387,-608.36,0.00019452,2]
[349550629,1737292249398,-876.74,0.00019452,2]
[349550630,1737292249408,-976.69,0.00019452,2]
[349550631,1737292249418,-500.0,0.00019452,2]
[349550632,1737292249428,-500.0,0.00019452,2]
[349550633,1737292249438,-500.0,0.00019452,2]
[349550634,1737292249447,-3376.63,0.00019452,2]
[349550635,1737292249457,-5837.31,0.00019452,2]
[349550636,1737292249467,-500.0,0.00019452,2]
[349550637,1737292249477,-500.0,0.00019452,2]
[349550638,1737292249486,-500.0,0.00019452,2]
[349550639,1737292249496,-1654.57,0.00019452,2]
[349550640,1737292249505,-500.0,0.00019452,2]
[349550641,1737292249515,-500.0,0.00019452,2]
[349550642,1737292249523,-590.84,0.00019452,2]
[349550643,1737292249533,-1000.0,0.00019452,2]
[349550644,1737292249542,-5578.33,0.00019452,2]
[349550645,1737292249552,-500.0,0.00019452,2]
[349550646,1737292249561,-500.0,0.00019452,2]
[349550647,1737292249574,-500.0,0.00019452,2]
[349550648,1737292249583,-1063.88,0.00019452,2]
[349550649,1737292249593,-837.48,0.00019452,2]
[349550650,1737292249602,-454.6425229,0.00019452,2]
[349550651,1737292249611,-500.0,0.00019452,2]
[349550652,1737292249620,-500.0,0.00019452,2]
[349550653,1737292249630,-500.0,0.00019452,2]
[349550654,1737292249640,-500.0,0.00019452,2]
[349550655,1737292249649,-500.0,0.00019452,2]
[349550656,1737292249659,-5505.67,0.00019452,2]
[349550657,1737292249670,-816.79,0.00019452,2]
[349550658,1737292249680,-1142.76,0.00019452,2]
[349550659,1737292249691,-512.32290557,0.00019452,2]
[349550660,1737292249701,-500.0,0.00019452,2]
[349550661,1737292249711,-587.96,0.00019452,2]
[349550662,1737292249726,-1323.26,0.00019452,2]
[349550663,1737292249736,-500.0,0.00019452,2]
[349550664,1737292249745,-500.0,0.00019452,2]
[349550665,1737292249756,-1361.89,0.00019452,2]
[349550666,1737292249767,-564.48,0.00019452,2]
[349550667,1737292249776,-1474.97,0.00019452,2]
[349550668,1737292249786,-7457.3,0.00019452,2]
[349550669,1737292249799,-7941.18,0.00019452,2]
[349550670,1737292249809,-1015.14,0.00019452,2]
[349550671,1737292249822,-500.0,0.00019452,2]
[349550672,1737292249832,-500.0,0.00019452,2]
[349550673,1737292249843,-570.38,0.00019452,2]
[349550674,1737292249853,-500.0,0.00019452,2]
[349550675,1737292249864,-500.0,0.00019452,2]
[349550676,1737292249874,-2600.78,0.00019452,2]
[349550677,1737292249884,-823.65,0.00019452,2]
[349550678,1737292249894,-1285.82,0.00019452,2]
[349550679,1737292249904,-753.37,0.00019452,2]
[349550680,1737292249914,-500.0,0.00019452,2]
[349550681,1737292249924,-509.80947361,0.00019452,2]
[349550682,1737292249934,-500.0,0.00019452,2]
[349550683,1737292249944,-508.35375038,0.00019452,2]
[349550684,1737292249954,-500.0,0.00019452,2]
[349550685,1737292249964,-566.95,0.00019452,2]
[349550686,1737292249975,-511.36,0.00019452,2]
[349550687,1737292249985,-500.0,0.00019452,2]
[349550688,1737292249996,-681.68,0.00019452,2]
[349550689,1737292250005,-629.83,0.00019452,2]
[349550690,1737292250015,-500.0,0.00019452,2]
[349550691,1737292250026,-500.0,0.00019452,2]
[349550692,1737292250036,-1482.04,0.00019452,2]
[349550693,1737292250047,-1930.92,0.00019452,2]
[349550694,1737292250058,-716.2,0.00019452,2]
[349550695,1737292250071,-500.0,0.00019452,2]
[349550696,1737292250081,-1697.51,0.00019452,2]
[349550697,1737292250091,-306.45801456,0.00019452,2]
[349550698,1737292250100,-500.0,0.00019452,2]
[349550699,1737292250110,-500.0,0.00019452,2]
[349550700,1737292250119,-500.0,0.00019452,2]
[349550701,1737292250130,-527.73,0.00019452,2]
[349550702,1737292250139,-500.0,0.00019452,2]
[349550703,1737292250150,-500.0,0.00019452,2]
[349550704,1737292250160,-500.0,0.00019452,2]
[349550705,1737292250171,-500.0,0.00019452,2]
[349550706,1737292250181,-500.0,0.00019452,2]
[349550707,1737292250190,-500.0,0.00019452,2]
[349550708,1737292250200,-500.0,0.00019452,2]
[349550709,1737292250210,-758.95,0.00019452,2]
[349550710,1737292250220,-432.40087591,0.00019452,2]
[349550711,1737292250230,-500.0,0.00019452,2]
[349550712,1737292250240,-2945.05,0.00019452,2]
[349550713,1737292250249,-500.0,0.00019452,2]
[349550714,1737292250259,-2412.03,0.00019452,2]
[349550715,1737292250270,-1273.31,0.00019452,2]
[349550716,1737292250280,-500.0,0.00019452,2]
[349550717,1737292250290,-500.0,0.00019452,2]
[349550718,1737292250299,-500.0,0.00019452,2]
[349550719,1737292250309,-2538.98,0.00019452,2]
[349550720,1737292250320,-500.0,0.00019452,2]
[349550721,1737292250330,-9176.13,0.00019452,2]
[349550722,1737292250340,-500.0,0.00019452,2]
[349550723,1737292250349,-500.0,0.00019452,2]
[349550724,1737292250359,-1804.75,0.00019452,2]
[349550725,1737292250369,-500.0,0.00019452,2]
[349550726,1737292250379,-607.32,0.00019452,2]
[349550727,1737292250389,-500.0,0.00019452,2]
[349550728,1737292250399,-500.0,0.00019452,2]
[349550729,1737292250408,-1312.39,0.00019452,2]
[349550730,1737292250418,-783.66,0.00019452,2]
[349550731,1737292250428,-500.0,0.00019452,2]
[349550732,1737292250438,-500.0,0.00019452,2]
[349550733,1737292250448,-1802.63,0.00019452,2]
[349550734,1737292250457,-500.6,0.00019452,2]
[349550735,1737292250467,-1796.07,0.00019452,2]
[349550736,1737292250477,-1461.42,0.00019452,2]
[349550737,1737292250486,-1263.38,0.00019452,2]
[349550738,1737292250496,-500.0,0.00019452,2]
[349550739,1737292250505,-500.0,0.00019452,2]
[349550740,1737292250515,-420.98301534,0.00019452,2]
[349550741,1737292250525,-500.0,0.00019452,2]
[349550742,1737292250534,-2172.3,0.00019452,2]
[349550743,1737292250544,-524.52,0.00019452,2]
[349550744,1737292250554,-618.96,0.00019452,2]
[349550745,1737292250563,-2037.95,0.00019452,2]
[349550746,1737292250574,-2569.61,0.00019452,2]
[349550747,1737292250584,-1016.82,0.00019452,2]
[349550748,1737292250593,-1022.09,0.00019452,2]
[349550749,1737292250603,-1421.94,0.00019452,2]
[349550750,1737292250612,-500.0,0.00019452,2]
[349550751,1737292250622,-426.77896251,0.00019452,2]
[349550752,1737292250632,-500.0,0.00019452,2]
[349550753,1737292250642,-1228.43,0.00019452,2]
[349550754,1737292250652,-9355.91,0.00019452,2]
[349550755,1737292250661,-1836.55,0.00019452,2]
[349550756,1737292250671,-500.0,0.00019452,2]
[349550757,1737292250681,-500.0,0.00019452,2]
[349550758,1737292250691,-903.35,0.00019452,2]
[349550759,1737292250701,-504.29262657,0.00019452,2]
[349550760,1737292250711,-500.0,0.00019452,2]
[349550761,1737292250721,-1068.47,0.00019452,2]
[349550762,1737292250734,-500.0,0.00019452,2]
[349550763,1737292250744,-500.0,0.00019452,2]
[349550764,1737292250754,-500.0,0.00019452,2]
[349550765,1737292250763,-756.47,0.00019452,2]
[349550766,1737292250774,-500.0,0.00019452,2]
[349550767,1737292250784,-500.0,0.00019452,2]
[349550768,1737292250794,-500.0,0.00019452,2]
[349550769,1737292250806,-632.21,0.00019452,2]
[349550770,1737292250818,-2662.17,0.00019452,2]
[349550771,1737292250828,-500.0,0.00019452,2]
[349550772,1737292250838,-500.0,0.00019452,2]
[349550773,1737292250848,-500.0,0.00019452,2]
[349550774,1737292250857,-500.0,0.00019452,2]
[349550775,1737292250867,-727.71,0.00019452,2]
[349550776,1737292250877,-868.49,0.00019452,2]
[349550777,1737292250887,-500.0,0.00019452,2]
[349550778,1737292250897,-500.0,0.00019452,2]
[349550779,1737292250907,-1115.03,0.00019452,2]
[349550780,1737292250917,-1374.44,0.00019452,2]
[349550781,1737292250927,-500.0,0.00019452,2]
[349550782,1737292250937,-532.28046026,0.00019452,2]
[349550783,1737292250946,-500.0,0.00019452,2]
[349550784,1737292250957,-443.38137629,0.00019452,2]
[349550785,1737292250967,-500.0,0.00019452,2]
[349550786,1737292250977,-516.91754911,0.00019452,2]
[349550787,1737292250987,-909.83,0.00019452,2]
[349550788,1737292250997,-502.17856262,0.00019452,2]
[349550789,1737292251006,-2288.34,0.00019452,2]
[349550790,1737292251016,-500.0,0.00019452,2]
[349550791,1737292251026,-917.29,0.00019452,2]
[349550792,1737292251036,-500.0,0.00019452,2]
[349550793,1737292251046,-500.0,0.00019452,2]
[349550794,1737292251056,-500.0,0.00019452,2]
[349550795,1737292251067,-1283.98,0.00019452,2]
[349550796,1737292251078,-500.0,0.00019452,2]
[349550797,1737292251088,-939.9,0.00019452,2]
[349550798,1737292251098,-500.0,0.00019452,2]
[349550799,1737292251109,-864.91,0.00019452,2]
[349550800,1737292251119,-500.0,0.00019452,2]
[349550801,1737292251128,-1000.54,0.00019452,2]
[349550802,1737292251138,-883.85,0.00019452,2]
[349550803,1737292251148,-500.0,0.00019452,2]
[349550804,1737292251159,-788.93,0.00019452,2]
[349550805,1737292251169,-778.32,0.00019452,2]
[349550806,1737292251179,-827.39,0.00019452,2]
[349550807,1737292251189,-500.0,0.00019452,2]
[349550808,1737292251199,-500.0,0.00019452,2]
[349550809,1737292251209,-500.0,0.00019452,2]
[349550810,1737292251218,-500.0,0.00019452,2]
[349550811,1737292251228,-500.0,0.00019452,2]
[349550812,1737292251238,-567.16,0.00019452,2]
[349550813,1737292251249,-500.0,0.00019456,2]
[349550814,1737292251258,-500.0,0.00019473,2]
[349550815,1737292251269,-3000.0,0.0001953,2]
[349550816,1737292251279,-673.91,0.00019534,2]
[349550817,1737292251288,-614.67441042,0.00019565,2]
[349550818,1737292251299,-17830.92485372,0.000196,2]
[349550819,1737292251309,-366.0,0.000196,2]
[349550820,1737292251320,-1000.0,0.000196,2]
[349550821,1737292251330,-231.0,0.000196,2]
[349550822,1737292251341,-2000.0,0.000197,2]
[349550823,1737292251352,-158.21606909,0.000197,2]
[349550824,1737292251363,-158.21606905,0.000197,2]
[349550825,1737292251373,-158.21606905,0.000197,2]
[349550826,1737292251383,-158.21606905,0.000197,2]
[349550827,1737292251394,-3841.543853,0.0001971,2]
[349550828,1737292251404,-500.0,0.00019726,2]
[349550829,1737292251413,-500.0,0.00019726,2]
[349550830,1737292251423,-500.0,0.00019726,2]
[349550831,1737292251433,-1018.517419,0.00019726,2]
[349550832,1737292251443,-500.0,0.00019726,2]
[349550833,1737292251453,-543.102051,0.00019726,2]
[349550834,1737292251463,-860.13,0.00019726,2]
[349550835,1737292251473,-500.0,0.00019726,2]
[349550836,1737292251483,-500.0,0.00019726,2]
[349550837,1737292251492,-500.0,0.00019726,2]
[349550838,1737292251503,-500.0,0.00019726,2]
[349550839,1737292251513,-500.0,0.00019726,2]
[349550840,1737292251522,-557.95240669,0.00019726,2]
[349550841,1737292251534,-500.0,0.00019726,2]
[349550842,1737292251544,-263.078232,0.00019726,2]
[349550843,1737292251554,-500.0,0.00019726,2]
[349550844,1737292251564,-500.0,0.00019726,2]
[349550845,1737292251574,-500.0,0.00019726,2]
[349550846,1737292251584,-500.0,0.00019726,2]
[349550847,1737292251594,-500.0,0.00019726,2]
[349550848,1737292251604,-530.85,0.00019726,2]
[349550849,1737292251614,-500.0,0.00019726,2]
[349550850,1737292251624,-1210.81,0.00019726,2]
[349550851,1737292251634,-500.0,0.00019726,2]
[349550852,1737292251644,-500.0,0.00019726,2]
[349550853,1737292251654,-500.0,0.00019726,2]
[349550854,1737292251664,-500.0,0.00019726,2]
[349550855,1737292251674,-500.0,0.00019726,2]
[349550856,1737292251683,-500.0,0.00019726,2]
[349550857,1737292251693,-500.0,0.00019726,2]
[349550858,1737292251703,-557.27,0.00019726,2]
[349550859,1737292251713,-500.0,0.00019726,2]
[349550860,1737292251723,-709.04,0.00019726,2]
[349550861,1737292251736,-500.0,0.00019726,2]
[349550862,1737292251746,-500.0,0.00019726,2]
[349550863,1737292251755,-662.42,0.00019726,2]
[349550864,1737292251767,-500.0,0.00019726,2]
[349550865,1737292251779,-500.0,0.00019726,2]
[349550866,1737292251790,-632.54,0.00019726,2]
[349550867,1737292251801,-571.93,0.00019726,2]
[349550868,1737292251811,-500.0,0.00019726,2]
[349550869,1737292251824,-500.0,0.00019726,2]
[349550870,1737292251835,-371.26987948,0.00019726,2]
[349550871,1737292251846,-500.0,0.00019726,2]
[349550872,1737292251856,-368.34442032,0.00019726,2]
[349550873,1737292251866,-500.0,0.00019726,2]
[349550874,1737292251877,-500.0,0.00019726,2]
[349550875,1737292251887,-579.12706606,0.00019726,2]
[349550876,1737292251898,-500.0,0.00019726,2]
[349550877,1737292251909,-500.0,0.00019726,2]
[349550878,1737292252113,-500.0,0.00019726,2]
[349550879,1737292252123,-500.0,0.00019726,2]
[349550880,1737292252132,-500.0,0.00019726,2]
[349550881,1737292252143,-500.0,0.00019726,2]
[349550882,1737292252152,-500.0,0.00019726,2]
[349550883,1737292252162,-500.0,0.00019726,2]
[349550884,1737292252171,-500.0,0.00019726,2]
[349550885,1737292252181,-500.0,0.00019726,2]
[349550886,1737292252190,-500.0,0.00019726,2]
[349550887,1737292252199,-500.0,0.00019726,2]
[349550888,1737292252209,-500.0,0.00019726,2]
[349550889,1737292252218,-510.9691036,0.00019726,2]
[349550890,1737292252227,-500.0,0.00019726,2]
[349550891,1737292252236,-500.0,0.00019726,2]
[349550892,1737292252246,-580.58,0.00019726,2]
[349550893,1737292252255,-500.0,0.00019726,2]
[349550894,1737292252265,-500.0,0.00019726,2]
[349550895,1737292252274,-234.59312817,0.00019726,2]
[349550896,1737292252283,-500.0,0.00019726,2]
[349550897,1737292252293,-500.0,0.00019726,2]
[349550898,1737292252303,-500.0,0.00019726,2]
[349550899,1737292252313,-500.0,0.00019726,2]
[349550900,1737292252324,-500.0,0.00019726,2]
[349550901,1737292252334,-500.0,0.00019726,2]
[349550902,1737292252344,-500.0,0.00019726,2]
[349550903,1737292252354,-500.0,0.00019726,2]
[349550904,1737292252364,-500.0,0.00019726,2]
[349550905,1737292252374,-500.0,0.00019726,2]
[349550906,1737292252384,-500.0,0.00019726,2]